Cogmind - Beta 14 @@@ ROGUE MODE // 2024.12.11 @ 12:42:56 Player: porter Result: Destroyed by S-10 Pest with Light Assault Rifle Performance ------------- Evolutions (0) 0 Regions Visited (3) 600 Robots Destroyed (22) 110 Value Destroyed (589) 589 Prototype IDs (0) 0 Alien Tech Used (0) 0 Bonus (173) 173 TOTAL SCORE: 1472 Bonus ------- Follower Combat Kills 188 Friendly Fire -15 Cogmind --------- Core Integrity 0/250 Matter 161/300 Energy 200/200 System Corruption 6% Temperature Cool (0) Movement Walking (190) Ox1 Location -10/Subcaves Parts ------- > --- POWER (1) -------- Subdweller Power Source > --- PROPULSION (2) --- Aluminum Leg Aluminum Leg > --- UTILITY (2) ------ Medium Storage Unit > --- WEAPON (2) ------- Slug Cannon > --- INVENTORY (10) --- Light Nuclear Core Aluminum Leg Aluminum Leg Aluminum Leg Cryofiber Web Improved Heat Sink Improved Heat Sink Mining Laser Peak State ------------ > --- POWER ------------ Light Nuclear Core > --- PROPULSION ------- Aluminum Leg Aluminum Leg > --- UTILITY ---------- Medium Storage Unit Seismic Detector > --- WEAPON ----------- Particle Gun Slug Cannon > --- INVENTORY -------- Subdweller Power Source Aluminum Leg Aluminum Leg Aluminum Leg Cryofiber Web Improved Heat Sink Improved Heat Sink Light Assault Rifle Mining Laser [Rating: 14] Favorites ----------- Power Light Ion Engine Engine Light Ion Engine Power Core Light Nuclear Core Propulsion Aluminum Leg Leg Aluminum Leg Utility Medium Storage Unit Device Seismic Detector Storage Medium Storage Unit Protection Backup Plating I Weapon Assault Rifle Energy Gun Particle Gun Ballistic Gun Assault Rifle Ballistic Cannon Slug Cannon Launcher Subdweller Shrapnel Launcher Special Weapon Mining Laser Build | -11 -10 -10 -10 ------- Run | Yrd Mat Min Sub Slots Evolved . | . . . . Power . | . . . . Propulsion . | . . . . Utility . | . . . . Weapon . | . . . . Parts Attached 29 | 7 12 4 6 Power 6 | 1 3 1 1 Engine 5 | 1 3 . 1 Core 1 | . . 1 . Reactor . | . . . . Propulsion 7 | 2 4 1 . Treads . | . . . . Leg 7 | 2 4 1 . Wheel . | . . . . Hover . | . . . . Flight . | . . . . Utility 3 | 1 2 . . Device 1 | . 1 . . Storage 2 | 1 1 . . Processor . | . . . . Hackware . | . . . . Protection . | . . . . Artifact . | . . . . Weapon 13 | 3 3 2 5 Energy Gun 4 | 2 1 . 1 Energy Cannon . | . . . . Ballistic Gun 4 | 1 2 . 1 Ballistic Cannon 1 | . . . 1 Launcher 2 | . . . 2 Special Weapon 2 | . . 2 . Impact Weapon . | . . . . Slashing Weapon . | . . . . Piercing Weapon . | . . . . Special Melee Weapon . | . . . . Unidentified Prototypes . | . . . . Parts Lost 9 | . 3 2 4 Power 2 | . . 1 1 Propulsion . | . . . . Utility 2 | . 1 . 1 Weapon 5 | . 2 1 2 Highest Loss Streak 3 | . 1 2 3 To Critical Strikes . | . . . . Average Slot Usage (%) 95 | . 98 95 93 Engine 9 | . 14 10 2 Core 4 | . . 3 10 Leg 28 | . 28 28 28 Device 10 | . 5 14 13 Storage 14 | . 14 14 14 Protection 2 | . 7 . . Energy Gun 7 | . 4 9 8 Ballistic Gun 11 | . 23 9 . Launcher 2 | . . . 7 Special Weapon 2 | . . 4 2 Peak Build Rating 14 | 6 9 9 14 Average Rating 8 | 4 7 8 11 On Entrance 6 | . 6 9 9 Naked Turns . | . . . . Heaviest Build 31 | 14 20 18 31 Greatest Support 20 | 20 20 20 20 Greatest Overweight (x) 3 | 3 . . 1 Average Overweight (x) . | . . . . Largest Inventory Capacity 10 | 8 10 10 10 Average Capacity 9 | 7 9 10 10 Most Carried 10 | 8 10 10 10 Average Carried 8 | 4 7 9 8 Final Capacity 10 | 8 10 10 10 Final Carried 10 | 6 10 8 8 Class Distribution -------------------- 57% | Mutant 42% | Scavenger-Mutant Dominant Class ---------------- Mutant | -10/Materials Scavenger-Mutant | -10/Mines Scavenger-Mutant | -10/Subcaves Resources | -11 -10 -10 -10 ----------- Run | Yrd Mat Min Sub Matter Collected 858 | 183 499 92 84 Remotely . | . . . . Salvage Created 667 | . 593 41 33 Parts 53 | . 45 6 2 Haulers Intercepted . | . . . . Recyclers Shooed . | . . . . Parts Field Recycled . | . . . . Retrieved Matter . | . . . . Parts Self-Destructed 13 | . . . 13 Prevented . | . . . . Kills | -11 -10 -10 -10 ------- Run | Yrd Mat Min Sub Combat Hostiles Destroyed 20 | . 15 3 2 Guns 18 | . 15 3 . Cannons 2 | . . . 2 Classes Destroyed 4 | . 3 . 1 Watcher 2 | . 2 . . Swarmer 7 | . 3 3 1 Grunt 12 | . 12 . . Subdweller 1 | . . . 1 Best Kill Streak 3 | . 3 3 1 Combat Bots Only 3 | . 3 3 1 Max Kills in Single Turn 2 | . 2 2 1 Gunslinging 1 | . . 1 . Exploded . | . . . . Melee . | . . . . Uniques/NPCs Destroyed . | . . . . Combat | -11 -10 -10 -10 -------- Run | Yrd Mat Min Sub Hostile Shots Fired 164 | . 91 12 61 Missed 48 | . 27 2 19 Damage Taken 1669 | . 763 358 548 Core 255 | . 119 27 109 Absorbed by Shields . | . . . . Core Remaining (%) 100 | 100 . . . Volleys Fired 130 | . 68 39 23 Largest 2 | . 2 2 2 Hottest 200 | . 85 200 113 Shots Fired 217 | . 125 59 33 Gun 171 | . 125 36 10 Cannon 21 | . . . 21 Launcher 1 | . . . 1 Special 24 | . . 23 1 Kinetic 166 | . 119 18 29 Thermal 46 | . 1 41 4 Explosive . | . . . . Electromagnetic 5 | . 5 . . Robot Hit Streak 10 | . 10 4 3 Robot Miss Streak 8 | . 5 2 8 Penetration Max . | . . . . Secondary Targets 2 | . . 2 . Max Gunslinging Chain 1 | . . 1 . Shots Hit Robots 87 | . 72 7 8 Core Hits 39 | 1 33 4 1 Critical Kills . | . . . . Critical Parts Destroyed 1 | . 1 . . Critical Strikes 1 | . 1 . . Destroy 1 | . 1 . . Melee Attacks . | . . . . Impact . | . . . . Slashing . | . . . . Piercing . | . . . . Sneak Attacks . | . . . . Combat Hostiles . | . . . . Follow-up Attacks . | . . . . Damage Inflicted 1252 | 5 886 76 285 Guns 1003 | . 882 75 46 Cannons 225 | . . . 225 Explosions 14 | . . . 14 Melee . | . . . . Ramming 10 | 5 4 1 . Kinetic 1119 | . 818 31 270 Thermal 59 | . . 44 15 Explosive . | . . . . Electromagnetic 64 | . 64 . . Impact . | . . . . Slashing . | . . . . Piercing . | . . . . Highest Corruption 6 | . . 6 6 Average Corruption 6 | . . 6 6 Corruption Purged . | . . . . Corruption Blocked . | . . . . Effects 31 | . . 11 20 Message Errors 3 | . . 1 2 Matter Fused 9 | . . 5 4 Heat Flow Errors 6 | . . 1 5 Energy Discharges 7 | . . 3 4 Data Loss (minor) 4 | . . 1 3 Data Loss (major) 1 | . . . 1 Misfires 1 | . . . 1 Overload Shots . | . . . . Overflow Damage 16 | . . . 16 Projectiles 16 | . . . 16 Explosions . | . . . . Melee . | . . . . Knockbacks 4 | . . . 4 Impact . | . . . . Kinetic 4 | . . . 4 Secondary . | . . . . Self-Inflicted Damage 14 | . . . 14 Shots 1 | . . . 1 Rammed . | . . . . Targets Rammed 4 | 2 1 1 . Kicked 4 | 2 1 1 . Crushed . | . . . . Highest Temperature 372 | . 57 372 260 Average Temperature 85 | . 17 102 108 Received Heat Transfer 486 | . 447 . 39 Effects 3 | . . 3 . Energy Bleed 1 | . . 1 . Interference 2 | . . 2 . Siege Activations . | . . . . Robots Corrupted . | . . . . Combat Hostiles . | . . . . Parts Fried . | . . . . Impact Corruptions . | . . . . Robots Melted . | . . . . Combat Hostiles . | . . . . Parts Melted . | . . . . Heat Transferred 148 | . . 111 37 Parts Sabotaged . | . . . . Parts Stolen . | . . . . Parts Stripped . | . . . . Power Chain Reactions . | . . . . Alert | -11 -10 -10 -10 ------- Run | Yrd Mat Min Sub Peak Influence 261 | . 261 81 . Initial 51 | . . 51 . Average 50 | . 72 32 . Maximum Alert Level 1 | . 1 . . Low Security (%) 99 | 100 99 100 . Level 1 . | . . . . Level 2 . | . . . . Level 3 . | . . . . Level 4 . | . . . . Level 5 . | . . . . High Security . | . . . . Max Security . | . . . . Squads Dispatched 4 | . 3 1 . Investigation 3 | . 2 1 . Extermination . | . . . . Reinforcement 1 | . 1 . . Assault . | . . . . Garrison . | . . . . Intercept . | . . . . Searches Triggered . | . . . . Construction Impeded . | . . . . Haulers Reinforced . | . . . . Active Scanning Responses . | . . . . Cargo Convoy Interrupts . | . . . . Stealth | -11 -10 -10 -10 --------- Run | Yrd Mat Min Sub Distress Signals 4 | . 3 1 . Communications Jammed . | . . . . Distress Signals . | . . . . Times Spotted 48 | . 28 3 17 Peak Tracking Total 8 | . 4 2 8 Tactical Retreats 4 | . 4 . . Traps | -11 -10 -10 -10 ------- Run | Yrd Mat Min Sub Traps Triggered 1 | . 1 . . Indirectly . | . . . . Trap Hack Attempts . | . . . . Triggered . | . . . . Disarmed 2 | . 2 . . Reprogrammed . | . . . . Reused . | . . . . Traps Extracted . | . . . . Installed . | . . . . Triggered . | . . . . Most Traps Carried 1 | . . 1 . Machines | -11 -10 -10 -10 ---------- Run | Yrd Mat Min Sub Machines Disabled . | . . . . Max in Single Turn . | . . . . Machines Repaired . | . . . . Machines Dismantled . | . . . . Machines Sabotaged . | . . . . Overloaded Fab Kills . | . . . . Hacking | -11 -10 -10 -10 --------- Run | Yrd Mat Min Sub Machines Accessed 10 | . 7 1 2 Terminals 5 | . 5 . . Fabricators . | . . . . Repair Stations 1 | . 1 . . Recycling Units 1 | . 1 . . Scanalyzers . | . . . . Garrison Access . | . . . . Total Hacks 25 | . 21 1 3 Successful 12 | . 8 1 3 Failed 13 | . 13 . . Catastrophic 4 | . 4 . . Database Lockouts . | . . . . Manual 18 | . 16 . 2 Terminals 17 | . 17 . . Fabricators . | . . . . Repair Stations 2 | . 2 . . Recycling Units 2 | . 2 . . Scanalyzers . | . . . . Garrison Access . | . . . . Terminal Hacks 9 | . 5 1 3 Record 1 | . . . 1 Open Door 2 | . . 1 1 Terminal Index 1 | . 1 . . Alert Level 1 | . 1 . . Unreport Threat 1 | . 1 . . Locate Traps 1 | . 1 . . Disarm Traps 1 | . 1 . . Release Object 1 | . . . 1 Fabricator Hacks . | . . . . Repair Station Hacks 1 | . 1 . . Refit 1 | . 1 . . Recycling Unit Hacks 2 | . 2 . . Recycle Component 1 | . 1 . . Process 1 | . 1 . . Scanalyzer . | . . . . Garrison Access Hacks . | . . . . Unauthorized Hacks . | . . . . Terminals . | . . . . Fabricators . | . . . . Repair Stations . | . . . . Recycling Units . | . . . . Scanalyzers . | . . . . Garrison Access . | . . . . Data Cores Recovered . | . . . . Used . | . . . . Hacking Detections 6 | . 6 . . Full Trace Events 3 | . 3 . . Feedback Events . | . . . . Feedback Blocked . | . . . . Robot Schematics Acquired . | . . . . Robots Built . | . . . . Authchips . | . . . . Time . | . . . . Total Robot Build Rating . | . . . . Part Schematics Acquired . | . . . . Parts Built . | . . . . Authchips . | . . . . Time . | . . . . Total Part Build Rating . | . . . . Parts Repaired . | . . . . Time . | . . . . Parts Recycled 1 | . 1 . . Recycled Matter 41 | . 41 . . Retrieved Matter . | . . . . Retrieved Components . | . . . . Parts Scanalyzed . | . . . . Part Schematics Acquired . | . . . . Parts Damaged . | . . . . Bothacking | -11 -10 -10 -10 ------------ Run | Yrd Mat Min Sub Used RIF Installer . | . . . . Robots Hacked . | . . . . Non-combat . | . . . . Combat . | . . . . Robot Hacks Applied . | . . . . Relay Couplers Released . | . . . . Fabnet Peak Effective % . | . . . . Robots Rewired . | . . . . Allies Hacked . | . . . . Hacks Repelled . | . . . . Allies | -11 -10 -10 -10 -------- Run | Yrd Mat Min Sub Total Allies 3 | . . 3 . Largest Group 3 | . . 3 3 Highest-Rated Group 40 | . . 40 40 Highest-Rated Ally 16 | . . 16 16 Total Orders . | . . . . Ally Attacks 28 | . . . 28 Total Damage 351 | . . . 351 Kills 6 | . . . 6 Allies Corrupted . | . . . . Allies Melted . | . . . . Intel | -11 -10 -10 -10 ------- Run | Yrd Mat Min Sub Robot Analysis Total . | . . . . Derelict Logs Recovered 2 | . . 2 . Drone Launches . | . . . . Drone Recoveries . | . . . . Exploration | -11 -10 -10 -10 ------------- Run | Yrd Mat Min Sub Turns Passed 3340 | 103 1149 1189 899 Spaces Moved 2114 | 73 747 784 510 Core 17 | 17 . . . Treads . | . . . . Legs 2097 | 56 747 784 510 Wheels . | . . . . Hover . | . . . . Flight . | . . . . Fastest Speed 50 | 50 120 120 120 Average Speed 128 | 115 120 120 154 Slowest Speed 200 | 200 120 120 190 Overloaded Moves . | . . . . Propulsion Burnouts . | . . . . Robots Hopped . | . . . . Cave-ins Triggered 1 | . . 1 . Exploration Rate (%) 56 | 4 88 98 36 Regions Visited 3 Branch Regions 2 Pre-discovered Areas . | . . . . Known Exits Taken . | . . . . Unknown Exits Taken 3 | 1 1 1 . Scrap Searched 3 | . . 3 . Spaces Dug 14 | . . 14 . Terrain Destroyed 45 | . . 17 28 Melee . | . . . . Projectile 26 | . . 17 9 AOE 19 | . . . 19 Terrain Rammed . | . . . . Walls Destroyed . | . . . . Machines Disabled . | . . . . Actions | -11 -10 -10 -10 --------- Run | Yrd Mat Min Sub Total 2492 | 90 881 932 589 Wait 153 | . 22 97 34 Move 2111 | 72 746 783 510 Hop . | . . . . Pick Up 39 | 8 19 3 9 Fast Attach 5 | 4 1 . . Attach 14 | 3 4 2 5 Detach 3 | 1 1 1 . Swap 10 | . 7 2 1 Drop 22 | . 12 4 6 Fire 130 | . 68 39 23 Melee . | . . . . Ram . | . . . . Kick 4 | 2 1 1 . Crush . | . . . . Escape Stasis . | . . . . Rewire . | . . . . Trap . | . . . . Miscellaneous 1 | . . . 1 Route ------- -11/Scrapyard -10/Materials (discovered 3 exits: [*Mat x2] / *Min) -10/Mines (discovered 3 exits: [*Mat x2] / *Sub) -10/Subcaves History --------- Turn | Location | Event 17 | -11/Scrapyard | Discovered new exit (range 15) 104 | -11/Scrapyard | Entered Materials 283 | -10/Materials | Discovered new exit (range 9) 314 | -10/Materials | Build established: Mutant 392 | -10/Materials | Discovered new exit (range 4) 575 | -10/Materials | Discovered new exit (range 14) 1253 | -10/Materials | Entered Mines 1304 | -10/Mines | Met a Derelict shopkeep closing up shop 1325 | -10/Mines | Met a Derelict bent on vengeance 1399 | -10/Mines | Discovered new exit (range 9) 1491 | -10/Mines | Build established: Scavenger-Mutant 1681 | -10/Mines | Discovered new exit (range 6) 1684 | -10/Mines | Assisted by bots powering up and referring to "LRC-V3" 1729 | -10/Mines | Learned 8 Materials zone layouts 1736 | -10/Mines | Found a hidden stash of uninstalled traps 1840 | -10/Mines | Core integrity fell below 50% 2102 | -10/Mines | Crushed by falling debris 2370 | -10/Mines | Build established: Mutant 2422 | -10/Mines | Discovered new exit (range 15) 2442 | -10/Mines | Entered Subcaves 2442 | -10/Subcaves | Accompanied by 3 allies 2510 | -10/Subcaves | Released subatomizers from SUBCON Basin 2571 | -10/Subcaves | Ambushed by swarm of Subdwellers 2899 | -10/Subcaves | Core integrity fell below 20% 2910 | -10/Subcaves | Build established: Scavenger-Mutant 2938 | -10/Subcaves | Shifting Twisted Machinery released Sub. Power Source 3117 | -10/Subcaves | Shifting Twisted Machinery released Slug Cannon 3341 | -10/Subcaves | Destroyed by S-10 Pest with Light Assault Rifle Last Messages --------------- 03187_ System corrupted: Heat flow error (+107). 03196_ Acquired Lgt. Nuclear Core. 03218_ System corrupted: Matter fused (-5). 03236_ AJJJYDVRKA/XT2KKSMIC|CHW& 03284_ System corrupted: Heat flow error (+298). 03305_ System corrupted: Heat flow error (+156). 03307_ Seismic Detector destroyed. 03308_ Destroyed Flight Unit. 03308_ S-10 Pest destroyed. 03310_ Subatomizers dissect the Wheel. 03313_ Sub. Shrapnel Launcher destroyed. 03315_ S-10 Pest knocked back. 03318_ Slug penetrates S-10 Pest. 03318_ S-10 Pest knocked back. 03324_ Subatomizers dissect the Wheel. 03331_ S-10 Pest destroyed. 03332_ Slug penetrates Earth. 03333_ Lgt. Assault Rifle destroyed. 03337_ S-10 Pest knocked back. 03338_ Subatomizers dissect the Wheel, destroying it. Map ----- +----------------------------------------------------+ | ???????????????????????????##???## ""###" # | | ???????????????????????????# ##### ""#?# | | ???????????????????????????# #### | | ???????????????????????????# !* #### | | ???????????????????????????# |[] | | ???????????????????????????## ### " | | ???????????????????????????## ##?# % | | ??????????????????????????## #??## " | | ??????????????????????????# #??## # | | ??????????????????????????# ##?## | | ?????????????????????????## ### #?# % | | ???????????????????????### ### #?# | | ???????????????????????# # #?## # " | | ???????????????????????## ## #??#### # | | ????????????????????????### ### #?????#### ### | | ??????????????????????????# ## ##????## # ## | | ?????????????????????????## ### #???## ## ##? | | ?????????????????????????# ## ##### #?? | | ????????????????????????### ## # #&!##? | | ????????????????????????# # #&%*## | | ????????????????????????# ## =%& # | | ????????????????????????# ### #### ### #%! | | ???????????????????????## ### #??## ##?# | | ???????????????????????# ## ##### #??# | | ???????????????????????## #### ## ##### | | ????????????????????????#@##?# #### | | ???????????????????????#; ;?# ## #?## | | ?????????????????????? ; ; ### #?## | | ????????????????????? % % ###### | | ??????????????????? % s ##????? | | ?????????????????# ; ; ; ### ##?????? | | ?????????????????# ### ###;;;;;#####??# ##??????? | | ?????????????????#;#??##??? ## #??????##???????? | | ?????????????????##????????# ##?# #??????????????? | | ???????????????????????????? #???# ??????????????? | | ???????????????????????????? #?????#?????????????? | | ????????????????????????????##???????????????????? | | ?????????????????????????????????????????????????? | | ?????????????????????????????????????????????????? | | ?????????????????????????????????????????????????? | | ?????????????????????????????????????????????????? | | ?????????????????????????????????????????????????? | | ?????????????????????????????????????????????????? | | ?????????????????????????????????????????????????? | | ?????????????????????????????????????????????????? | | ?????????????????????????????????????????????????? | | ?????????????????????????????????????????????????? | | | | | | | +----------------------------------------------------+ Best States ------------- Heat Dissipation 25 Energy Generation 15 Energy Capacity 250 Matter Stores 300 Matter Capacity 300 Sight Range 16 Terrain Scan Density 10 Armor Coverage 80 Evasion (%) 55 Item Schematics ----------------- None Robot Schematics ------------------ None Fabricated ------------ Nothing Alien Tech Used ----------------- None Achievements -------------- None Challenges ------------ None Game ------ Seed IntegrityRestorationPendant Manual? 0 Play Time 00:36:41 Cumulative 8.7 hours Start 2024.12.11 @ 12:06:48 End 2024.12.11 @ 12:42:56 Sessions 1 Manual Loads 0 Difficulty Rogue Special Mode None Game No. 12 Rogue 6 Adventurer 6 Explorer 0 Win Type - Total 0 Types 0/0/0/0/0/0/0/0/0 Lore% 11 Gallery% 16 Achievement% 17 Wizard Run 0 Options --------- Layout 1 ASCII 0 Keyboard 0 Movement Numpad Keybinds 0 Fullscreen 1 Font 32/SmallcapsGlow Map View 77x35 Zoom Use 0% Tactical HUD 1 Map Filters NONE Filters NONE Steam 1 RUN: 2c7af525-1cf4-4902-afe9-08011d9af56c